Cogmind - Beta 10.2 @@@ ROGUE MODE // 2022.02.05 @ 21:34:14 Player: Jezoensis Result: Self-destructed Performance ------------- Evolutions (8) 4000 Regions Visited (23) 4600 Robots Destroyed (142) 710 Value Destroyed (3662) 3662 Prototype IDs (99) 1980 Alien Tech Used (1) 200 Bonus (3731) 3731 TOTAL SCORE: 18883 Bonus ------- High Alert Combat Kills 211 Follower Combat Kills 2362 Network Hubs Disabled 200 Met Imprinter 300 Was Imprinted 300 Met Zhirov 300 Met Warlord at Base 500 MAIN.C Attacked Warlord 500 Friendly Fire -942 Cogmind --------- Core Integrity 1399/1450 Matter 204/300 Energy 208/250 System Corruption 7% Temperature Cool (0) Movement Hovering (45) Location -2/Research Parts ------- > --- POWER (2) -------- Micro Fission Core Light Particle Reactor > --- PROPULSION (5) --- Gyrokinetic Inverter Cooled Gravmag System Cooled Antigrav System Antigrav Array > --- UTILITY (13) ----- Large Storage Unit Large Storage Unit Large Storage Unit Experimental Optical Array Experimental Signal Interpreter Long-range Terrain Scanner Experimental Terrain Scan Processor Advanced Melee Analysis Suite Advanced Transmission Jammer > --- WEAPON (3) ------- Ionic Axe Nanosword Force Lance > --- INVENTORY (22) --- Improved Antigrav System Improved Linear Gravjet Antigrav Array Medium Storage Unit Improved Matter Compressor (300) Improved Terrain Scanner Nanoactuators Stasis Canceller Improved Transmission Jammer Advanced ECM Suite Improved Medium Armor Plating Improved Hacking Suite Heavy Phase Cannon Long-range Missile Launcher Advanced Datajack Ionic Axe Force Lance Vortex Lance Peak State ------------ > --- POWER ------------ Micro Fission Core Light Particle Reactor > --- PROPULSION ------- Gyrokinetic Inverter Improved Antigrav System Cooled Antigrav System Antigrav Array > --- UTILITY ---------- Medium Storage Unit Large Storage Unit Large Storage Unit Experimental Optical Array Advanced Sensor Array Experimental Signal Interpreter Long-range Terrain Scanner Experimental Terrain Scan Processor Advanced Melee Analysis Suite Advanced Transmission Jammer Experimental Propulsion Shielding Improved Utility Shielding Experimental System Shield > --- WEAPON ----------- Ionic Axe Nanosword Force Lance > --- INVENTORY -------- Micro Fission Core Improved Antigrav System Improved Linear Gravjet Antigrav Array Large Storage Unit Improved Matter Compressor Improved Terrain Scanner Nanoactuators Stasis Canceller Improved Transmission Jammer Advanced ECM Suite Improved Medium Armor Plating Improved Hacking Suite Heavy Phase Cannon Long-range Missile Launcher Advanced Datajack Ionic Axe Force Lance Vortex Lance [Rating: 145] Favorites ----------- Power Micro Fission Core Engine Improved Ion Engine Power Core Micro Fission Core Reactor Light Particle Reactor Propulsion Light Treads Treads Light Treads Hover Unit Combat Airjet Utility Large Storage Unit Device Improved Terrain Scanner Storage Large Storage Unit Processor Experimental Signal Interpreter Hackware Experimental System Shield Protection Improved Light Armor Plating Weapon Heavy Pick Energy Gun Improved EM Shotgun Energy Cannon EM Pulse Cannon Ballistic Gun Minigun Ballistic Cannon Light Cannon Launcher Long-range Missile Launcher Special Weapon Mining Laser Impact Weapon Impact Mace Slashing Weapon Ionic Axe Piercing Weapon Heavy Pick Special Melee Weapon Advanced Datajack Build | -11 -10 -10 -9 -9 -7 -6 -6 -6 -6 -6 -6 -5 -5 -5 -5 -4 -4 -4 -4 -4 -3 -3 -2 ------- Run | Scr Mat Min Mat Min Zio Pro Fac Ext Cet Arc Hub Fac Upp Upp War Pro Fac Upp Upp Zhi Pro Res Res Slots Evolved 16 | . . . 2 . . . 6 . . . . 2 . . . . 2 . . . . 2 2 Power 1 | . . . . . . . 1 . . . . . . . . . . . . . . . . Propulsion 3 | . . . 1 . . . 1 . . . . . . . . . . . . . . 1 . Utility 11 | . . . 1 . . . 4 . . . . 2 . . . . 1 . . . . 1 2 Weapon 1 | . . . . . . . . . . . . . . . . . 1 . . . . . . Parts Attached 439 | 8 15 7 55 2 10 8 65 52 12 11 27 30 4 . 7 1 58 1 6 5 3 45 7 Power 34 | 1 1 1 1 . 2 2 4 4 1 1 2 4 . . . . 4 . . 1 . 4 1 Engine 11 | 1 1 1 1 . 2 2 1 1 . 1 . . . . . . . . . . . . . Core 19 | . . . . . . . 3 2 . . 2 4 . . . . 4 . . 1 . 2 1 Reactor 4 | . . . . . . . . 1 1 . . . . . . . . . . . . 2 . Propulsion 66 | 2 1 2 7 . . 4 16 5 1 2 1 7 . . . . 7 1 . 1 . 7 2 Treads 25 | 2 1 2 7 . . 4 9 . . . . . . . . . . . . . . . . Leg . | . . . . . . . . . . . . . . . . . . . . . . . . Wheel . | . . . . . . . . . . . . . . . . . . . . . . . . Hover 41 | . . . . . . . 7 5 1 2 1 7 . . . . 7 1 . 1 . 7 2 Flight . | . . . . . . . . . . . . . . . . . . . . . . . . Utility 242 | 3 9 . 30 2 7 . 31 40 5 8 15 17 2 . 3 . 35 . . 3 . 28 4 Device 133 | 2 3 . 17 2 2 . 13 27 3 5 10 7 2 . 1 . 17 . . 2 . 20 . Storage 26 | 1 4 . 3 . 2 . 4 2 . 1 . 1 . . 1 . 2 . . . . 3 2 Processor 14 | . . . . . 3 . 6 . . . 1 1 . . . . 3 . . . . . . Hackware 9 | . . . . . . . 1 . . . . 2 . . . . 6 . . . . . . Protection 60 | . 2 . 10 . . . 7 11 2 2 4 6 . . 1 . 7 . . 1 . 5 2 Artifact . | . . . . . . . . . . . . . . . . . . . . . . . . Weapon 97 | 2 4 4 17 . 1 2 14 3 5 . 9 2 2 . 4 1 12 . 6 . 3 6 . Energy Gun 13 | 1 2 . 7 . . . 2 . 1 . . . . . . . . . . . . . . Energy Cannon 20 | . . 1 1 . . 1 4 . . . 1 . 2 . 1 1 3 . 3 . 1 1 . Ballistic Gun 11 | 1 1 2 4 . 1 1 . . 1 . . . . . . . . . . . . . . Ballistic Cannon 4 | . . 1 . . . . 3 . . . . . . . . . . . . . . . . Launcher 4 | . . . 2 . . . . 1 . . 1 . . . . . . . . . . . . Special Weapon 4 | . 1 . 3 . . . . . . . . . . . . . . . . . . . . Impact Weapon 10 | . . . . . . . 4 . . . 1 . . . 1 . 4 . . . . . . Slashing Weapon 11 | . . . . . . . . 1 1 . 2 . . . . . 2 . . . 1 4 . Piercing Weapon 11 | . . . . . . . 1 1 2 . 2 2 . . 1 . 1 . . . . 1 . Special Melee Weapon 9 | . . . . . . . . . . . 2 . . . 1 . 2 . 3 . 1 . . Unidentified Prototypes 27 | . . . . . 5 . 2 2 4 2 . . . . 3 . 3 . . 3 . 2 1 Parts Lost 38 | . . 2 3 . 1 3 1 6 4 . . 8 . . . 1 3 . . . . 1 5 Power 6 | . . . . . . 1 . 2 1 . . 1 . . . . . . . . . . 1 Propulsion 15 | . . 1 2 . . 2 . 2 2 . . 5 . . . . 1 . . . . . . Utility 14 | . . . . . 1 . 1 2 1 . . 1 . . . 1 2 . . . . 1 4 Weapon 3 | . . 1 1 . . . . . . . . 1 . . . . . . . . . . . Highest Loss Streak 5 | . . 2 1 . 1 3 1 3 4 . . 4 . . . 1 1 . . . . 1 5 Average Slot Usage (%) 97 | . 100 100 99 100 99 99 99 98 87 89 100 99 82 82 82 82 93 100 100 97 100 99 94 Engine 5 | . 14 14 11 11 11 10 5 1 6 7 7 . . . . . . . . . . . . Core 4 | . . . . . . . 6 10 . . 5 10 5 5 5 5 9 10 10 10 10 5 4 Treads 13 | . 28 28 32 33 33 32 17 . . . . . . . . . . . . . . . . Hover 11 | . . . . . . . 8 25 21 22 26 22 17 17 17 17 20 21 21 21 21 22 17 Device 9 | . 9 . 8 11 7 . 6 9 8 8 10 13 17 17 17 17 9 10 10 8 10 13 13 Storage 17 | . 16 28 22 22 25 33 16 13 13 13 13 11 11 11 11 11 12 15 15 15 15 14 13 Processor 11 | . . . . . . . 18 20 20 20 20 17 17 17 17 17 17 21 21 21 21 19 17 Hackware 1 | . . . . . . . . . . . . 3 . . . . 6 5 5 5 5 4 4 Protection 2 | . 2 . 2 . . . 3 2 1 3 2 4 5 5 5 5 4 . . . . . 7 Energy Gun 3 | . 13 9 5 11 11 8 . . . . . . . . . . . . . . . . . Ballistic Gun 4 | . 14 10 7 11 11 11 2 . . . . . . . . . . . . . . . . Impact Weapon 1 | . . . . . . . 2 1 . . 1 5 5 5 4 5 4 5 5 5 5 . . Slashing Weapon 1 | . . . . . . . . 4 6 6 4 . . . . . 4 5 5 5 5 8 8 Piercing Weapon 1 | . . . . . . . 1 6 6 6 5 4 . . . . 2 . . . . 4 4 Naked Turns . | . . . . . . . . . . . . . . . . . . . . . . . . Heaviest Build 86 | 12 33 37 48 46 54 61 81 65 65 58 65 69 46 46 46 46 66 61 61 61 61 83 86 Greatest Support 104 | 40 40 40 63 60 60 60 104 88 74 66 66 77 47 47 47 47 65 62 62 62 61 86 89 Greatest Overweight (x) 1 | . . . . . . 1 . . 1 1 . 1 . . . . 1 . . . . . . Average Overweight (x) . | . . . . . . . . . . . . . . . . . . . . . . . . Largest Inventory Capacity 22 | 6 14 14 16 16 20 20 20 16 16 16 16 22 16 16 16 16 20 20 20 20 20 22 22 Average Capacity 16 | 5 10 14 15 16 17 20 18 16 16 16 16 16 16 16 16 16 18 20 20 20 20 20 21 Most Carried 22 | 4 13 14 16 16 20 20 20 16 16 16 16 17 16 16 16 16 20 20 20 20 20 22 21 Average Carried 16 | 2 9 12 15 15 17 19 17 15 15 15 15 15 14 15 15 15 17 20 20 19 20 20 19 Final Capacity 22 | 6 14 14 16 16 20 20 16 16 16 16 16 16 16 16 16 16 20 20 20 20 20 22 22 Final Carried 22 | 3 13 14 16 16 20 20 16 16 15 16 16 16 15 16 16 16 20 20 20 20 20 22 19 Class Distribution -------------------- 27% | Scavenger-Mutant 16% | Scavenger-Scout 11% | Scavenger-Ninja 9% | Hauler-Mutant 9% | Hauler-Scout 9% | Mutant 5% | Hauler-Ninja 3% | Scout Dominant Class ---------------- Mutant | -10/Materials Mutant | -10/Mines Scavenger-Mutant | -9/Materials Scavenger-Mutant | -9/Mines Scavenger-Mutant | -7/Zion Scavenger-Mutant | -6/Proximity Caves Scavenger-Scout | -6/Factory Commander-Scout | -6/Extension Scavenger-Scout | -6/Cetus Scavenger-Mutant | -6/Archives Scavenger-Scout | -6/Hub_04(d) Scavenger-Scout | -5/Factory Scavenger-Ninja | -5/Upper Caves Scavenger-Ninja | -5/Upper Caves Scavenger-Ninja | -5/Warlord Scavenger-Ninja | -4/Proximity Caves Hauler-Scout | -4/Factory Hauler-Scout | -4/Upper Caves Hauler-Scout | -4/Upper Caves Hauler-Scout | -4/Zhirov Hauler-Scout | -3/Proximity Caves Hauler-Ninja | -3/Research Hauler-Ninja | -2/Research Resources | -11 -10 -10 -9 -9 -7 -6 -6 -6 -6 -6 -6 -5 -5 -5 -5 -4 -4 -4 -4 -4 -3 -3 -2 ----------- Run | Scr Mat Min Mat Min Zio Pro Fac Ext Cet Arc Hub Fac Upp Upp War Pro Fac Upp Upp Zhi Pro Res Res Matter Collected 5673 | 264 314 56 664 107 85 495 1119 459 166 110 260 305 28 32 . 70 580 10 . . 63 486 . Remotely . | . . . . . . . . . . . . . . . . . . . . . . . . Salvage Created 6242 | 70 459 112 921 119 . 277 1172 437 . 71 919 339 84 . . . 755 . . . 35 472 . Parts 330 | 10 43 7 55 9 . 13 51 23 . 9 46 14 . . . . 29 . . . . 21 . Haulers Intercepted 14 | . 2 . 1 . . . 7 . . . 2 1 . . . . . . . . . 1 . Recyclers Shooed 8 | 1 1 . 1 1 . . 1 1 . . . . . . . . 2 . . . . . . Parts Field Recycled . | . . . . . . . . . . . . . . . . . . . . . . . . Retrieved Matter . | . . . . . . . . . . . . . . . . . . . . . . . . Parts Self-Destructed 56 | . . . . . . 32 . . . . . . . . 17 . . . 7 . . . . Prevented 10 | . . . . . . 10 . . . . . . . . . . . . . . . . . Kills | -11 -10 -10 -9 -9 -7 -6 -6 -6 -6 -6 -6 -5 -5 -5 -5 -4 -4 -4 -4 -4 -3 -3 -2 ------- Run | Scr Mat Min Mat Min Zio Pro Fac Ext Cet Arc Hub Fac Upp Upp War Pro Fac Upp Upp Zhi Pro Res Res Combat Hostiles Destroyed 71 | . 11 2 24 3 . 6 7 5 . . 4 3 . . . . 4 . . . . 2 . Melee 15 | . . . . . . . . 5 . . 1 3 . . . . 4 . . . . 2 . Guns 35 | . 7 1 16 3 . 5 3 . . . . . . . . . . . . . . . . Cannons 10 | . . 1 6 . . . 3 . . . . . . . . . . . . . . . . AOE 11 | . 4 . 2 . . 1 1 . . . 3 . . . . . . . . . . . . Classes Destroyed 20 | 2 5 1 2 . . 2 2 2 . . 3 . . . . . . . . . 1 . . Worker 14 | 1 1 . 1 . . . 1 . . . 8 . . . . . 1 . . . . 1 . Builder 5 | . 1 . 1 . . . . . . . 2 . . . . . 1 . . . . . . Tunneler 8 | 3 . . 1 . . . . 2 . . . . . . . . 2 . . . . . . Hauler 14 | . 2 . 1 . . . 7 . . . 2 1 . . . . . . . . . 1 . Recycler 9 | . . . 2 1 . . . . . . 2 1 . . . . 3 . . . . . . Mechanic 2 | . . . . . . . . 1 . . . . . . . . 1 . . . . . . Operator 4 | . . . . . . . . 1 . 2 . . . . . . . . . . . 1 . Watcher 12 | . 3 . . . . . 3 2 . . 1 . . . . . . . . . . 3 . Swarmer 27 | . 9 . 10 3 . 1 . 1 . . 3 . . . . . . . . . . . . Saboteur 1 | . . . . . . 1 . . . . . . . . . . . . . . . . . Grunt 16 | . 2 . 5 . . 3 1 2 . . . . . . . . 2 . . . . 1 . Brawler 2 | . . . 1 . . . 1 . . . . . . . . . . . . . . . . Duelist 2 | . . . . . . 1 1 . . . . . . . . . . . . . . . . Sentry 15 | . . 2 8 . . . 2 2 . . . . . . . . . . . . . 1 . Hunter 2 | . . . . . . . 1 . . . 1 . . . . . . . . . . . . Programmer 5 | . . . . . . . 1 . . . . 2 . . . . 2 . . . . . . Z-Light 2 | . . . . . . . . . . . 1 1 . . . . . . . . . . . Z-Heavy 1 | . . . . . . . . . . . 1 . . . . . . . . . . . . Packrat 1 | . . . . . . . . . . . . . 1 . . . . . . . . . . Samaritan 1 | . . . . . . . . . . . . . . . . . . . . . 1 . . Fireman 1 | . . . . . . . . . . . 1 . . . . . . . . . . . . Best Kill Streak 17 | 2 8 2 4 4 . 3 4 3 . 2 17 3 . . . . 2 . . . . 2 . Combat Bots Only 6 | . 6 2 4 3 . 3 2 2 . . 3 3 . . . . 2 . . . . 1 . Max Kills in Single Turn 16 | 1 3 1 2 2 . 2 1 1 . 1 16 1 1 . . . 1 . . . 1 1 . Gunslinging 1 | . 1 . . 1 . 1 . . . . . . . . . . . . . . . . . Exploded 3 | . 3 . 2 . . 1 1 . . . 2 . . . . . . . . . . . . Melee 1 | . . . . . . . . 1 . . 1 1 . . . . 1 . . . . 1 . Uniques/NPCs Destroyed . | . . . . . . . . . . . . . . . . . . . . . . . . Combat | -11 -10 -10 -9 -9 -7 -6 -6 -6 -6 -6 -6 -5 -5 -5 -5 -4 -4 -4 -4 -4 -3 -3 -2 -------- Run | Scr Mat Min Mat Min Zio Pro Fac Ext Cet Arc Hub Fac Upp Upp War Pro Fac Upp Upp Zhi Pro Res Res Damage Taken 8218 | . 375 264 1303 83 . 637 744 1250 589 19 299 775 . . 22 61 743 . 63 . . 510 481 Core 1092 | . 68 55 140 . . 67 80 167 91 . 39 84 . . . . 146 . 13 . . 91 51 Absorbed by Shields 56 | . . . . . . . . 56 . . . . . . . . . . . . . . . Core Remaining (%) 74 | 100 . 50 . . . 48 . . . . 55 . . . . 91 . . . . 86 93 . Volleys Fired 240 | 16 35 6 85 5 . 21 45 . . . 4 . 4 . . 2 6 . 8 . 1 2 . Largest 2 | 2 2 2 2 2 . 2 2 . . . 1 . 1 . . 1 1 . 1 . 1 1 . Hottest 143 | 70 100 100 100 70 . 96 143 . . . 90 . 98 . . 98 98 . 98 . 98 98 . Shots Fired 434 | 32 69 12 162 10 . 37 85 . . . 4 . 4 . . 2 6 . 8 . 1 2 . Gun 298 | 32 68 6 105 10 . 35 42 . . . . . . . . . . . . . . . . Cannon 123 | . . 6 48 . . 2 43 . . . 1 . 4 . . 2 6 . 8 . 1 2 . Launcher 5 | . . . 2 . . . . . . . 3 . . . . . . . . . . . . Special 8 | . 1 . 7 . . . . . . . . . . . . . . . . . . . . Kinetic 206 | 16 34 3 76 5 . 21 51 . . . . . . . . . . . . . . . . Thermal 143 | 16 1 6 84 . . . 12 . . . 1 . 4 . . 2 6 . 8 . 1 2 . Explosive 5 | . . . 2 . . . . . . . 3 . . . . . . . . . . . . Electromagnetic 80 | . 34 3 . 5 . 16 22 . . . . . . . . . . . . . . . . Robot Hit Streak 23 | 6 5 15 23 8 . 5 18 . . . 7 . . . . . . . . . . . . Robot Miss Streak 5 | 2 5 . 4 1 . 3 4 . . . 1 . . . . . . . . . . . . Penetration Max 1 | . . . . . . . 1 . . . . . . . . . . . . . . . . Secondary Targets 9 | . 3 . 3 2 . 1 . . . . . . . . . . . . . . . . . Max Gunslinging Chain 1 | . 1 . 1 1 . 1 . . . . . . . . . . . . . . . . . Shots Hit Robots 422 | 22 33 11 115 9 . 29 70 32 12 4 12 16 1 . 3 . 37 . . 3 2 11 . Core Hits 199 | 5 21 4 41 5 . 16 31 14 3 2 24 7 . . . . 16 . . . 1 9 . Critical Hits 15 | . . . 1 . . . 8 1 . 1 1 2 . . . . . . . . . 1 . Critical Kills 9 | . . . 1 . . . 2 1 . 1 1 2 . . . . . . . . . 1 . Critical Parts Destroyed 4 | . . . . . . . 4 . . . . . . . . . . . . . . . . Melee Attacks 259 | . . . . . . . 14 41 13 5 17 37 4 . 3 5 75 . 1 3 12 22 7 Impact 55 | . . . . . . . 8 4 . . . 20 4 . . 5 11 . . . 3 . . Slashing 88 | . . . . . . . . 5 3 . 5 . . . . . 47 . 1 . 9 13 5 Piercing 106 | . . . . . . . 6 32 10 5 10 17 . . . . 15 . . . . 9 2 Sneak Attacks 41 | . . . . . . . 4 6 . 2 3 4 1 . 3 . 11 . . 2 2 3 . Combat Hostiles 1 | . . . . . . . . 1 . . . . . . . . . . . . . . . Follow-up Attacks 22 | . . . . . . . . 5 3 . 4 3 . . . . 4 . . . 1 2 . Damage Inflicted 15754 | 296 697 160 1963 148 . 560 2432 1482 424 271 2897 760 65 . . . 2267 . . . 233 1099 . Guns 3420 | 296 466 52 1165 83 . 454 904 . . . . . . . . . . . . . . . . Cannons 1680 | . . 104 558 . . 46 972 . . . . . . . . . . . . . . . . Explosions 3144 | . 228 . 194 61 . 60 92 . . . 2509 . . . . . . . . . . . . Melee 7453 | . . . . . . . 464 1482 424 271 388 760 65 . . . 2267 . . . 233 1099 . Ramming 57 | . 3 4 46 4 . . . . . . . . . . . . . . . . . . . Kinetic 2493 | 149 100 22 763 17 . 243 1199 . . . . . . . . . . . . . . . . Thermal 1960 | 147 228 104 960 61 . 60 313 . . . 87 . . . . . . . . . . . . Explosive 463 | . . . 194 . . . . . . . 269 . . . . . . . . . . . . Electromagnetic 3328 | . 366 30 . 66 . 257 456 . . . 2153 . . . . . . . . . . . . Impact 535 | . . . . . . . . 44 . . . 134 65 . . . 172 . . . 120 . . Slashing 2386 | . . . . . . . . 33 119 . 127 . . . . . 1535 . . . 113 459 . Piercing 4532 | . . . . . . . 464 1405 305 271 261 626 . . . . 560 . . . . 640 . Highest Corruption 7 | . . . . . 4 4 1 2 2 2 2 1 1 1 1 . . . . . . 1 7 Average Corruption 1 | . . . . . 4 4 1 1 2 2 2 1 1 1 1 . . . . . . 1 7 Corruption Purged . | . . . . . . . . . . . . . . . . . . . . . . . . Effects 48 | . . . . . 9 9 4 9 3 2 5 2 2 . . . . . . . . 2 1 Message Errors 17 | . . . . . 1 2 2 2 3 . 3 . 1 . . . . . . . . 2 1 Matter Fused 6 | . . . . . 5 1 . . . . . . . . . . . . . . . . . Heat Flow Errors 5 | . . . . . 1 . . 4 . . . . . . . . . . . . . . . Energy Discharges 9 | . . . . . 1 1 1 2 . 1 2 1 . . . . . . . . . . . Data Loss (minor) 9 | . . . . . 1 4 . 1 . 1 . 1 1 . . . . . . . . . . Targeting Errors 1 | . . . . . . . 1 . . . . . . . . . . . . . . . . Weapon Failures 1 | . . . . . . 1 . . . . . . . . . . . . . . . . . Overload Shots . | . . . . . . . . . . . . . . . . . . . . . . . . Overflow Damage 1429 | . . . 6 . . . 5 217 33 64 237 149 53 . . . 344 . . . 109 212 . Projectiles 11 | . . . 6 . . . 5 . . . . . . . . . . . . . . . . Explosions 182 | . . . . . . . . . . . 182 . . . . . . . . . . . . Melee 1236 | . . . . . . . . 217 33 64 55 149 53 . . . 344 . . . 109 212 . Knockbacks 7 | . . . 2 . . . 1 . . . . 2 1 . . . 1 . . . . . . Impact 4 | . . . . . . . . . . . . 2 1 . . . 1 . . . . . . Kinetic 3 | . . . 2 . . . 1 . . . . . . . . . . . . . . . . Secondary . | . . . . . . . . . . . . . . . . . . . . . . . . Self-Inflicted Damage 214 | . 38 . . 37 . . 41 . . . 98 . . . . . . . . . . . . Shots 4 | . 1 . . 1 . . 1 . . . 1 . . . . . . . . . . . . Rammed 9 | . 1 1 6 1 . . . . . . . . . . . . . . . . . . . Targets Rammed 10 | . 1 1 7 1 . . . . . . . . . . . . . . . . . . . Kicked . | . . . . . . . . . . . . . . . . . . . . . . . . Crushed 1 | . . . 1 . . . . . . . . . . . . . . . . . . . . Highest Temperature 336 | 63 90 203 257 42 102 91 336 288 7 . 56 . 126 . . 84 116 . 230 8 62 124 . Average Temperature 56 | 24 34 118 84 18 53 28 85 89 7 . 15 . 55 . . 44 49 . 90 4 23 8 . Received Heat Transfer 1413 | . 42 81 351 . . 174 69 279 117 . 9 108 . . 9 9 90 . . . . 39 36 Siege Activations . | . . . . . . . . . . . . . . . . . . . . . . . . Robots Corrupted 1 | . . . . . . . . . . . 1 . . . . . . . . . . . . Combat Hostiles . | . . . . . . . . . . . . . . . . . . . . . . . . Parts Fried 21 | . 1 . . . . 1 4 3 . . 11 . . . . . 1 . . . . . . Impact Corruptions 8 | . . . . . . . . . . . . 2 3 . . . 3 . . . . . . Robots Melted . | . . . . . . . . . . . . . . . . . . . . . . . . Combat Hostiles . | . . . . . . . . . . . . . . . . . . . . . . . . Parts Melted 5 | . . 1 3 . . . . . . . 1 . . . . . . . . . . . . Heat Transferred 4006 | 444 350 222 2257 100 . 50 383 . . . 200 . . . . . . . . . . . . Parts Sabotaged . | . . . . . . . . . . . . . . . . . . . . . . . . Parts Stolen . | . . . . . . . . . . . . . . . . . . . . . . . . Parts Stripped . | . . . . . . . . . . . . . . . . . . . . . . . . Power Chain Reactions 9 | . 4 . . 1 . 1 2 . . . 1 . . . . . . . . . . . . Missiles Intercepted . | . . . . . . . . . . . . . . . . . . . . . . . . Alert | -11 -10 -10 -9 -9 -7 -6 -6 -6 -6 -6 -6 -5 -5 -5 -5 -4 -4 -4 -4 -4 -3 -3 -2 ------- Run | Scr Mat Min Mat Min Zio Pro Fac Ext Cet Arc Hub Fac Upp Upp War Pro Fac Upp Upp Zhi Pro Res Res Peak Influence 1152 | 20 316 123 470 163 . . 548 521 170 237 1152 717 . . . . 1020 . . . . 192 81 Initial 554 | . 13 103 47 88 . . 328 220 154 58 82 554 . . . . . . . . . . 42 Average 293 | 6 154 108 249 147 . . 426 356 142 203 367 588 . . . . 242 . . . . 82 61 Maximum Alert Level 4 | . 1 . 2 . . . 2 2 . 1 4 3 . . . . 3 . . . . . . Low Security (%) 40 | 100 63 100 38 100 . . . 3 100 23 36 . . . . . 58 . . . . 100 100 Level 1 26 | . 36 . 37 . . . 28 67 . 76 42 . . . . . 16 . . . . . . Level 2 31 | . . . 23 . . . 71 28 . . 10 97 . . . . 17 . . . . . . Level 3 1 | . . . . . . . . . . . 6 2 . . . . 7 . . . . . . Level 4 . | . . . . . . . . . . . 3 . . . . . . . . . . . . Level 5 . | . . . . . . . . . . . . . . . . . . . . . . . . High Security . | . . . . . . . . . . . . . . . . . . . . . . . . Max Security . | . . . . . . . . . . . . . . . . . . . . . . . . Squads Dispatched 20 | . 1 . 2 . . 1 5 1 . . 1 3 . . . . 5 . . . . 1 . Investigation 5 | . 1 . . . . . . 1 . . . 1 . . . . 1 . . . . 1 . Extermination 5 | . . . . . . . 1 . . . . 2 . . . . 2 . . . . . . Reinforcement 7 | . . . 2 . . . 3 . . . 1 . . . . . 1 . . . . . . Assault 3 | . . . . . . 1 1 . . . . . . . . . 1 . . . . . . Garrison . | . . . . . . . . . . . . . . . . . . . . . . . . Intercept . | . . . . . . . . . . . . . . . . . . . . . . . . Construction Impeded 1 | . . . . . . . 1 . . . . . . . . . . . . . . . . Haulers Reinforced 2 | . . . . . . . 1 . . . 1 . . . . . . . . . . . . Stealth | -11 -10 -10 -9 -9 -7 -6 -6 -6 -6 -6 -6 -5 -5 -5 -5 -4 -4 -4 -4 -4 -3 -3 -2 --------- Run | Scr Mat Min Mat Min Zio Pro Fac Ext Cet Arc Hub Fac Upp Upp War Pro Fac Upp Upp Zhi Pro Res Res Distress Signals 11 | . . 1 3 . . . . . 1 . 1 . . . 1 . 4 . . . . . . Communications Jammed 11 | . . . . . . . . . . . . . . . . . . . . . . . 11 Distress Signals 11 | . . . . . . . . . . . . . . . . . . . . . . . 11 Times Spotted 255 | . 18 2 33 3 . 25 26 22 5 7 17 25 . . 5 1 39 . 2 . . 18 7 Peak Tracking Total 10 | . 5 2 4 3 . 9 5 4 5 1 4 8 . . 4 1 10 . 2 . . 4 7 Tactical Retreats 26 | . 1 . 1 . . 2 5 1 . . . 3 . . . . 7 . 1 . . 5 . Traps | -11 -10 -10 -9 -9 -7 -6 -6 -6 -6 -6 -6 -5 -5 -5 -5 -4 -4 -4 -4 -4 -3 -3 -2 ------- Run | Scr Mat Min Mat Min Zio Pro Fac Ext Cet Arc Hub Fac Upp Upp War Pro Fac Upp Upp Zhi Pro Res Res Traps Triggered 7 | . . . . . . . . 1 . . 1 2 . . . . 2 . . . . 1 . Indirectly 1 | . . . . . . . . . . . 1 . . . . . . . . . . . . Trap Hack Attempts . | . . . . . . . . . . . . . . . . . . . . . . . . Triggered . | . . . . . . . . . . . . . . . . . . . . . . . . Disarmed . | . . . . . . . . . . . . . . . . . . . . . . . . Reprogrammed . | . . . . . . . . . . . . . . . . . . . . . . . . Reused . | . . . . . . . . . . . . . . . . . . . . . . . . Traps Extracted . | . . . . . . . . . . . . . . . . . . . . . . . . Installed . | . . . . . . . . . . . . . . . . . . . . . . . . Triggered 11 | . . . . . . . . . . . . . . . 11 . . . . . . . . Machines | -11 -10 -10 -9 -9 -7 -6 -6 -6 -6 -6 -6 -5 -5 -5 -5 -4 -4 -4 -4 -4 -3 -3 -2 ---------- Run | Scr Mat Min Mat Min Zio Pro Fac Ext Cet Arc Hub Fac Upp Upp War Pro Fac Upp Upp Zhi Pro Res Res Machines Disabled 25 | . 2 . 3 . . . . . . 1 17 . . . . . 2 . . . . . . Max in Single Turn 15 | . 1 . 1 . . . . . . . 15 . . . . . 1 . . . . . . Garrison Access 2 | . . . . . . . . . . . . . . . . . 1 . . . . 1 . Network Hub 1 | . . . . . . . . . . . 1 . . . . . . . . . . . . Machines Sabotaged . | . . . . . . . . . . . . . . . . . . . . . . . . Garrisons Compromised . | . . . . . . . . . . . . . . . . . . . . . . . . Overloaded Fab Kills . | . . . . . . . . . . . . . . . . . . . . . . . . Fab Network Shutdowns 1 | . . . . . . . . . . . . . . . . . 1 . . . . . . Hacking | -11 -10 -10 -9 -9 -7 -6 -6 -6 -6 -6 -6 -5 -5 -5 -5 -4 -4 -4 -4 -4 -3 -3 -2 --------- Run | Scr Mat Min Mat Min Zio Pro Fac Ext Cet Arc Hub Fac Upp Upp War Pro Fac Upp Upp Zhi Pro Res Res Machines Accessed 38 | . 6 . 5 . 1 . 2 1 . . 1 4 1 . 3 . 9 . . 4 . 1 . Terminals 11 | . 6 . 5 . . . . . . . . . . . . . . . . . . . . Fabricators 7 | . . . . . . . 1 . . . . 1 . . . . 5 . . . . . . Repair Stations 2 | . . . . . . . . . . . . 1 . . . . 1 . . . . . . Recycling Units 4 | . . . . . . . . 1 . . . 1 . . . . 2 . . . . . . Scanalyzers 1 | . . . . . . . 1 . . . . . . . . . . . . . . . . Garrison Access 4 | . . . . . . . . . . . 1 1 . . . . 1 . . . . 1 . Total Hacks 120 | . 22 . 12 . 9 . 5 2 . . 1 14 1 . 3 . 34 . . 15 . 2 . Successful 77 | . 12 . 9 . 9 . 4 1 . . . 8 1 . 3 . 14 . . 15 . 1 . Failed 43 | . 10 . 3 . . . 1 1 . . 1 6 . . . . 20 . . . . 1 . Catastrophic 5 | . 1 . 1 . . . . . . . 1 . . . . . 2 . . . . . . Database Lockouts . | . . . . . . . . . . . . . . . . . . . . . . . . Manual 216 | . 19 . 6 . . . 21 43 12 . 12 33 . . 3 . 41 . . 1 . 25 . Terminals 34 | . 22 . 12 . . . . . . . . . . . . . . . . . . . . Fabricators 38 | . . . . . . . 2 . . . . 8 . . . . 28 . . . . . . Repair Stations 4 | . . . . . . . . . . . . 3 . . . . 1 . . . . . . Recycling Units 7 | . . . . . . . . 2 . . . 1 . . . . 4 . . . . . . Scanalyzers 3 | . . . . . . . 3 . . . . . . . . . . . . . . . . Garrison Access 6 | . . . . . . . . . . . 1 2 . . . . 1 . . . . 2 . Terminal Hacks 39 | . 7 . 4 . 9 . . . . . . . 1 . 3 . . . . 15 . . . Record 6 | . . . . . . . . . . . . . . . 1 . . . . 5 . . . Part Schematic 12 | . 1 . . . 9 . . . . . . . . . . . . . . 2 . . . Robot Analysis 9 | . 4 . 1 . . . . . . . . . . . . . . . . 4 . . . Prototype ID Bank 5 | . 1 . . . . . . . . . . . . . . . . . . 4 . . . Open Door 3 | . . . . . . . . . . . . . 1 . 2 . . . . . . . . Terminal Index 1 | . . . 1 . . . . . . . . . . . . . . . . . . . . Unreport Threat 2 | . . . 2 . . . . . . . . . . . . . . . . . . . . Locate Traps 1 | . 1 . . . . . . . . . . . . . . . . . . . . . . Fabricator Hacks 15 | . . . . . . . 2 . . . . 3 . . . . 10 . . . . . . Network Status 1 | . . . . . . . . . . . . . . . . . 1 . . . . . . Load Schematic 7 | . . . . . . . 1 . . . . 2 . . . . 4 . . . . . . Build 7 | . . . . . . . 1 . . . . 1 . . . . 5 . . . . . . Repair Station Hacks 3 | . . . . . . . . . . . . 2 . . . . 1 . . . . . . Scan Component 1 | . . . . . . . . . . . . 1 . . . . . . . . . . . Repair 1 | . . . . . . . . . . . . 1 . . . . . . . . . . . Refit 1 | . . . . . . . . . . . . . . . . . 1 . . . . . . Recycling Unit Hacks . | . . . . . . . . . . . . . . . . . . . . . . . . Scanalyzer 2 | . . . . . . . 2 . . . . . . . . . . . . . . . . Insert Component 1 | . . . . . . . 1 . . . . . . . . . . . . . . . . Analyze 1 | . . . . . . . 1 . . . . . . . . . . . . . . . . Garrison Access Hacks 2 | . . . . . . . . . . . . . . . . . 1 . . . . 1 . Seal Access 2 | . . . . . . . . . . . . . . . . . 1 . . . . 1 . Unauthorized Hacks 16 | . 5 . 5 . . . . 1 . . . 3 . . . . 2 . . . . . . Terminals 10 | . 5 . 5 . . . . . . . . . . . . . . . . . . . . Track 6 | . 3 . 3 . . . . . . . . . . . . . . . . . . . . Botnet 4 | . 2 . 2 . . . . . . . . . . . . . . . . . . . . Fabricators 3 | . . . . . . . . . . . . 2 . . . . 1 . . . . . . Prioritize 2 | . . . . . . . . . . . . 1 . . . . 1 . . . . . . Siphon 1 | . . . . . . . . . . . . 1 . . . . . . . . . . . Repair Stations . | . . . . . . . . . . . . . . . . . . . . . . . . Recycling Units 3 | . . . . . . . . 1 . . . 1 . . . . 1 . . . . . . Recyclers 3 | . . . . . . . . 1 . . . 1 . . . . 1 . . . . . . Scanalyzers . | . . . . . . . . . . . . . . . . . . . . . . . . Garrison Access . | . . . . . . . . . . . . . . . . . . . . . . . . Data Cores Recovered . | . . . . . . . . . . . . . . . . . . . . . . . . Used . | . . . . . . . . . . . . . . . . . . . . . . . . Hacking Detections 22 | . 6 . 5 . . . 2 . . . 1 3 . . . . 5 . . . . . . Full Trace Events 2 | . 1 . . . . . . . . . . 1 . . . . . . . . . . . Feedback Events . | . . . . . . . . . . . . . . . . . . . . . . . . Feedback Blocked . | . . . . . . . . . . . . . . . . . . . . . . . . Robot Schematics Acquired . | . . . . . . . . . . . . . . . . . . . . . . . . Robots Built . | . . . . . . . . . . . . . . . . . . . . . . . . Matter . | . . . . . . . . . . . . . . . . . . . . . . . . Time . | . . . . . . . . . . . . . . . . . . . . . . . . Total Robot Build Rating . | . . . . . . . . . . . . . . . . . . . . . . . . Part Schematics Acquired 120 | . 1 . . . 9 . 16 20 14 . . 50 . . . . . . . 2 . 8 . Parts Built 8 | . . . . . . . 2 . . . . 1 . . . . 5 . . . . . . Matter 1619 | . . . . . . . 190 . . . . 285 . . . . 1144 . . . . . . Time 552 | . . . . . . . 95 . . . . 152 . . . . 305 . . . . . . Total Part Build Rating 43 | . . . . . . . 10 . . . . 5 . . . . 28 . . . . . . Parts Repaired 1 | . . . . . . . . . . . . 1 . . . . . . . . . . . Time 50 | . . . . . . . . . . . . 50 . . . . . . . . . . . Parts Recycled . | . . . . . . . . . . . . . . . . . . . . . . . . Recycled Matter . | . . . . . . . . . . . . . . . . . . . . . . . . Retrieved Matter . | . . . . . . . . . . . . . . . . . . . . . . . . Retrieved Components . | . . . . . . . . . . . . . . . . . . . . . . . . Parts Scanalyzed 1 | . . . . . . . 1 . . . . . . . . . . . . . . . . Part Schematics Acquired 1 | . . . . . . . 1 . . . . . . . . . . . . . . . . Parts Damaged . | . . . . . . . . . . . . . . . . . . . . . . . . Bothacking | -11 -10 -10 -9 -9 -7 -6 -6 -6 -6 -6 -6 -5 -5 -5 -5 -4 -4 -4 -4 -4 -3 -3 -2 ------------ Run | Scr Mat Min Mat Min Zio Pro Fac Ext Cet Arc Hub Fac Upp Upp War Pro Fac Upp Upp Zhi Pro Res Res Used RIF Installer . | . . . . . . . . . . . . . . . . . . . . . . . . Robots Hacked 8 | . . . . . . . . . . . 2 . . . 2 . 2 . . 2 . . . Non-combat . | . . . . . . . . . . . . . . . . . . . . . . . . Combat 8 | . . . . . . . . . . . 2 . . . 2 . 2 . . 2 . . . Robot Hacks Applied 8 | . . . . . . . . . . . 2 . . . 2 . 2 . . 2 . . . parse_system 8 | . . . . . . . . . . . 2 . . . 2 . 2 . . 2 . . . Relay Couplers Released . | . . . . . . . . . . . . . . . . . . . . . . . . Robots Rewired 12 | . . . . . . 2 . 10 . . . . . . . . . . . . . . . Allies Hacked . | . . . . . . . . . . . . . . . . . . . . . . . . Hacks Repelled . | . . . . . . . . . . . . . . . . . . . . . . . . Allies | -11 -10 -10 -9 -9 -7 -6 -6 -6 -6 -6 -6 -5 -5 -5 -5 -4 -4 -4 -4 -4 -3 -3 -2 -------- Run | Scr Mat Min Mat Min Zio Pro Fac Ext Cet Arc Hub Fac Upp Upp War Pro Fac Upp Upp Zhi Pro Res Res Total Allies 44 | . . . . . 8 2 2 13 6 . 4 . . . . . 6 . . . . 3 . Largest Group 11 | . . . . . 8 8 5 9 10 10 11 5 . . . . 5 . . . . 2 . Highest-Rated Group 648 | . . . . . 267 268 170 367 479 479 648 294 . . . . 494 . . . . 206 . Highest-Rated Ally 103 | . . . . . 41 41 85 85 70 70 85 85 . . . . 103 . . . . 103 . Zionite Dispatches 12 | . . . . . . . 1 2 2 . 2 . . . . . 3 . . . . 2 . Heavy 5 | . . . . . . . 1 . . . 2 . . . . . 1 . . . . 1 . Light 3 | . . . . . . . . 1 1 . . . . . . . 1 . . . . . . Recon 1 | . . . . . . . . 1 . . . . . . . . . . . . . . . Fire 1 | . . . . . . . . . 1 . . . . . . . . . . . . . . Melee Resupply 1 | . . . . . . . . . . . . . . . . . . . . . . 1 . Hacking Resupply 1 | . . . . . . . . . . . . . . . . . 1 . . . . . . Total Orders 3 | . . . . . . . . . . . . . . . . . 1 . . . . 2 . STAY 1 | . . . . . . . . . . . . . . . . . . . . . . 1 . DROP 2 | . . . . . . . . . . . . . . . . . 1 . . . . 1 . Ally Attacks 341 | . . . . . . 88 32 40 48 39 43 11 . . . . 40 . . . . . . Total Damage 9452 | . . . . . . 1833 582 1508 1187 804 1218 245 . . . . 2075 . . . . . . Kills 63 | . . . . . . 20 3 9 5 4 10 3 . . . . 9 . . . . . . Allies Corrupted . | . . . . . . . . . . . . . . . . . . . . . . . . Allies Melted . | . . . . . . . . . . . . . . . . . . . . . . . . Intel | -11 -10 -10 -9 -9 -7 -6 -6 -6 -6 -6 -6 -5 -5 -5 -5 -4 -4 -4 -4 -4 -3 -3 -2 ------- Run | Scr Mat Min Mat Min Zio Pro Fac Ext Cet Arc Hub Fac Upp Upp War Pro Fac Upp Upp Zhi Pro Res Res Robot Analysis Total 9 | . 4 . 1 . . . . . . . . . . . . . . . . 4 . . . Derelict Logs Recovered 9 | . . . . . 2 1 . . . . . . . 1 . 1 . 2 2 . . . . Drone Launches . | . . . . . . . . . . . . . . . . . . . . . . . . Drone Recoveries . | . . . . . . . . . . . . . . . . . . . . . . . . Zionite Intel Received 36 | . . . . . . . 5 10 1 . 2 8 . . . . 5 . . . . 5 . Main Access 1 | . . . . . . . . . . . . 1 . . . . . . . . . . . Branch Access 2 | . . . . . . . 1 1 . . . . . . . . . . . . . . . Emergency Access 3 | . . . . . . . 1 1 . . 1 . . . . . . . . . . . . Component Stockpiles 4 | . . . . . . . 1 1 . . . 1 . . . . 1 . . . . . . Prototype Stockpiles 3 | . . . . . . . . 1 . . . 1 . . . . 1 . . . . . . Component Schematics 4 | . . . . . . . 1 . 1 . . 2 . . . . . . . . . . . Prototype Schematics 5 | . . . . . . . . 2 . . . 2 . . . . . . . . . 1 . Unaware Analyses 6 | . . . . . . . . 2 . . 1 1 . . . . 1 . . . . 1 . Trap Installations 4 | . . . . . . . 1 1 . . . . . . . . 1 . . . . 1 . Active Terminals 2 | . . . . . . . . 1 . . . . . . . . . . . . . 1 . Depthwide Sectors/0 1 | . . . . . . . . . . . . . . . . . 1 . . . . . . Depthwide Sectors/-1 1 | . . . . . . . . . . . . . . . . . . . . . . 1 . Exploration | -11 -10 -10 -9 -9 -7 -6 -6 -6 -6 -6 -6 -5 -5 -5 -5 -4 -4 -4 -4 -4 -3 -3 -2 ------------- Run | Scr Mat Min Mat Min Zio Pro Fac Ext Cet Arc Hub Fac Upp Upp War Pro Fac Upp Upp Zhi Pro Res Res Turns Passed 11086 | 115 731 174 1115 158 1470 462 1292 824 191 91 280 800 170 111 483 165 1311 102 152 76 161 581 71 Spaces Moved 11251 | 41 361 84 459 87 892 223 1024 772 155 63 327 1212 239 189 764 254 2072 232 289 145 305 962 100 Core 13 | 13 . . . . . . . . . . . . . . . . . . . . . . . Treads 2532 | 28 361 84 459 87 892 223 398 . . . . . . . . . . . . . . . . Legs . | . . . . . . . . . . . . . . . . . . . . . . . . Wheels . | . . . . . . . . . . . . . . . . . . . . . . . . Hover 8706 | . . . . . . . 626 772 155 63 327 1212 239 189 764 254 2072 232 289 145 305 962 100 Flight . | . . . . . . . . . . . . . . . . . . . . . . . . Fastest Speed 40 | 50 160 160 160 160 160 160 58 58 58 58 53 53 58 58 58 58 40 43 43 43 43 40 45 Average Speed 76 | 125 160 160 160 160 160 165 95 65 64 78 57 53 58 58 58 58 46 43 43 43 43 44 46 Slowest Speed 183 | 160 160 160 160 160 160 183 162 72 131 131 58 121 58 58 58 58 113 43 43 43 43 48 48 Overloaded Moves . | . . . . . . . . . . . . . . . . . . . . . . . . Propulsion Burnouts . | . . . . . . . . . . . . . . . . . . . . . . . . Robots Hopped . | . . . . . . . . . . . . . . . . . . . . . . . . Cave-ins Triggered 1 | . . . . . . . . . . . . . . . . . . . . . . . 1 Exploration Rate (%) 52 | 5 64 26 50 29 88 43 43 83 64 79 40 36 57 50 88 55 60 65 65 59 67 32 5 Regions Visited 23 Branch Regions 16 Pre-discovered Areas 14 | . . . . . 2 . . . . . . . . . . 1 5 . 1 3 . 2 . Known Exits Taken 16 | . . . . . . . 1 1 1 1 1 1 1 1 1 1 1 1 1 1 1 1 . Unknown Exits Taken 7 | 1 1 1 1 1 1 1 . . . . . . . . . . . . . . . . . Scrap Searched 15 | . . . . . 3 . . . . . . . 1 1 . 5 . 2 1 . 2 . . Spaces Dug 108 | . 1 . 7 . . . 7 1 . . 1 14 7 . . 7 32 . 9 . 9 8 5 Terrain Destroyed 346 | . 8 . 20 2 . 10 26 1 . . 188 14 7 . . 7 32 . 9 . 9 8 5 Melee 77 | . . . . . . . 7 1 . . 1 14 3 . . 5 26 . 1 . 8 6 5 Projectile 36 | . 1 . 7 . . . 5 . . . . . 4 . . 2 6 . 8 . 1 2 . AOE 233 | . 7 . 13 2 . 10 14 . . . 187 . . . . . . . . . . . . Terrain Rammed . | . . . . . . . . . . . . . . . . . . . . . . . . Walls Destroyed . | . . . . . . . . . . . . . . . . . . . . . . . . Machines Disabled . | . . . . . . . . . . . . . . . . . . . . . . . . Actions | -11 -10 -10 -9 -9 -7 -6 -6 -6 -6 -6 -6 -5 -5 -5 -5 -4 -4 -4 -4 -4 -3 -3 -2 --------- Run | Scr Mat Min Mat Min Zio Pro Fac Ext Cet Arc Hub Fac Upp Upp War Pro Fac Upp Upp Zhi Pro Res Res Total 12913 | 70 442 110 661 96 936 280 1242 1023 231 95 386 1310 260 189 803 262 2317 233 303 157 317 1076 114 Wait 255 | . 10 6 6 . 14 2 10 60 43 3 5 9 7 . 21 . 34 . . . . 25 . Move 11228 | 40 360 83 458 86 891 222 1023 771 154 62 326 1211 238 188 763 253 2071 231 288 144 304 961 100 Hop . | . . . . . . . . . . . . . . . . . . . . . . . . Pick Up 166 | 5 13 4 25 1 8 8 37 9 2 6 2 14 . 1 2 . 20 . . . . 9 . Fast Attach 79 | 5 . . 1 . 8 . 9 7 5 4 5 4 . . 4 . 15 1 . 4 . 5 2 Attach 96 | 2 1 2 12 . 1 4 20 6 4 2 1 11 2 . . 1 17 . . 1 . 6 3 Detach 44 | . . . . . 3 . 5 3 4 . 2 1 3 . 1 1 16 . . 1 . 4 . Swap 266 | 1 14 5 42 2 2 4 36 39 3 5 21 15 2 . 3 . 26 . 6 1 3 34 2 Drop 184 | 1 8 3 25 1 9 7 44 11 6 8 7 7 . . 6 . 21 1 . 3 . 14 2 Fire 240 | 16 35 6 85 5 . 21 45 . . . 4 . 4 . . 2 6 . 8 . 1 2 . Melee 214 | . . . . . . . 13 32 10 5 13 30 4 . 3 5 65 . 1 3 9 16 5 Ram . | . . . . . . . . . . . . . . . . . . . . . . . . Kick . | . . . . . . . . . . . . . . . . . . . . . . . . Crush 10 | . 1 1 7 1 . . . . . . . . . . . . . . . . . . . Escape Stasis 38 | . . . . . . . . 4 . . . 8 . . . . 26 . . . . . . Rewire 93 | . . . . . . 12 . 81 . . . . . . . . . . . . . . . Trap . | . . . . . . . . . . . . . . . . . . . . . . . . Miscellaneous . | . . . . . . . . . . . . . . . . . . . . . . . . Route ------- -11/Scrapyard -10/Materials (discovered 5 exits: *Mat x3 / [*Min x2]) -10/Mines -9/Materials (discovered 3 exits: [*Mat x2] / [*Min]) -9/Mines (discovered 2 exits: [*Mat] / *Zio) -7/Zion (discovered 2 exits: Dee / [*Pro]) -6/Proximity Caves -6/Factory (discovered 5 exits: *Fac / Low x2 / *Ext x2) -6/Extension (discovered 2 exits: *Fac / *Cet) -6/Cetus -6/Archives (discovered 2 exits: *Fac / *Hub) -6/Hub_04(d) -5/Factory (discovered 5 exits: Fac x4 / *Upp) -5/Upper Caves -5/Upper Caves -5/Warlord -4/Proximity Caves -4/Factory (discovered 2 exits: *Res / *Upp) -4/Upper Caves -4/Upper Caves (discovered 2 exits: *Res / *Zhi) -4/Zhirov -3/Proximity Caves -3/Research -2/Research History --------- Turn | Location | Event 2 | -11/Scrapyard | Met Revision 17 12 | -11/Scrapyard | Discovered new exit (range 15) 116 | -11/Scrapyard | Entered Materials 184 | -10/Materials | Discovered new exit (range 3) 199 | -10/Materials | Discovered new exit (range 16) 314 | -10/Materials | Build established: Mutant 406 | -10/Materials | Discovered new exit (range 5) 615 | -10/Materials | Discovered new exit (range 16) 709 | -10/Materials | Discovered new exit (range 13) 847 | -10/Materials | Entered Mines 934 | -10/Mines | Discovered new exit (range 10) 996 | -10/Mines | Joined a pair of Derelicts in attacking an 0b10 outpost 1021 | -10/Mines | Entered Materials 1021 | -9/Materials | Evolved 2 slots: Propulsion x1, Utility x1 1258 | -9/Materials | Build established: Scavenger-Mutant 1321 | -9/Materials | Discovered new exit (range 15) 1625 | -9/Materials | Discovered new exit (range 11) 2122 | -9/Materials | Discovered new exit (range 9) 2136 | -9/Materials | Entered Mines 2156 | -9/Mines | A weapon hastily lodged in a ceiling crevice suddenly fell to the ground 2291 | -9/Mines | Discovered new exit (range 5) 2292 | -9/Mines | A Derelict revealed a hidden shortcut to a safe place 2294 | -9/Mines | Entered Zion 2365 | -7/Zion | Discovered new exit (range 10) 2446 | -7/Zion | Gained Derelict followers 2797 | -7/Zion | Found Prototype Device 2797 | -7/Zion | Identified Phasing AFG 2846 | -7/Zion | Identified exit to Deep Caves 3230 | -7/Zion | Learned location of Warlord (-5) 3255 | -7/Zion | Learned location of Extension (-6) 3273 | -7/Zion | Found Prototype Processor 3273 | -7/Zion | Identified Exp. Core Analyzer 3277 | -7/Zion | Found Prototype Processor 3277 | -7/Zion | Identified Spectral Analyzer 3280 | -7/Zion | Found Prototype Processor 3280 | -7/Zion | Identified Exp. Target Analyzer 3283 | -7/Zion | Found Prototype Processor 3283 | -7/Zion | Identified Exp. Armor Integrity Analyzer 3290 | -7/Zion | Found Prototype Processor 3297 | -7/Zion | Found Prototype Processor 3395 | -7/Zion | Imprinted 3398 | -7/Zion | Declared Zion's savior 3570 | -7/Zion | Build established: Hauler-Mutant 3764 | -7/Zion | Entered Proximity Caves 3764 | -6/Proximity Caves | Accompanied by 8 allies 3864 | -6/Proximity Caves | Attracted the attention of an 0b10 outpost 3902 | -6/Proximity Caves | Lost 3 parts (1p2n) 4028 | -6/Proximity Caves | Core integrity fell below 50% 4130 | -6/Proximity Caves | Discovered new exit (range 9) 4195 | -6/Proximity Caves | Received a Behemoth hack from an annoying Tinkerer 4226 | -6/Proximity Caves | Entered Factory 4226 | -6/Factory | Accompanied by 5 allies 4226 | -6/Factory | Evolved 6 slots: Power x1, Propulsion x1, Utility x4 4226 | -6/Factory | Identified Exp. Targeting Computer 4227 | -6/Factory | Identified Exp. Signal Interpreter 4256 | -6/Factory | Build established: Scavenger-Mutant 4480 | -6/Factory | Spotted B-75 Beast 4576 | -6/Factory | First assault squad dispatched 4994 | -6/Factory | Fabricated Cmb. Airjet? 5048 | -6/Factory | Build established: Hauler-Mutant 5119 | -6/Factory | Discovered new exit (range 12) 5140 | -6/Factory | Identified exit to Factory 5247 | -6/Factory | Retrieved Zion intel report: Trap Installations 5257 | -6/Factory | Retrieved Zion intel report: Component Stockpiles 5351 | -6/Factory | Build established: Scavenger-Scout 5384 | -6/Factory | Retrieved Zion intel report: Component Schematics 5408 | -6/Factory | Retrieved Zion intel report: Emergency Access 5446 | -6/Factory | Retrieved Zion intel report: Branch Access 5446 | -6/Factory | Identified exit to Lower Caves 5446 | -6/Factory | Identified exit to Extension 5447 | -6/Factory | Zion Heavy squad teleported in 5518 | -6/Factory | Entered Extension 5518 | -6/Extension | Accompanied by 2 allies 5589 | -6/Extension | Retrieved Zion intel report: Active Terminals 5590 | -6/Extension | Zion Recon squad teleported in 5665 | -6/Extension | Retrieved Zion intel report: Prototype Schematics 5741 | -6/Extension | Retrieved Zion intel report: Emergency Access 5757 | -6/Extension | Retrieved Zion intel report: Trap Installations 5992 | -6/Extension | Spotted B-75 Beast 6002 | -6/Extension | Spotted B-75 Beast 6061 | -6/Extension | Lost 3 parts (2p1u) 6065 | -6/Extension | Retrieved Zion intel report: Component Stockpiles 6066 | -6/Extension | Zion Light squad teleported in 6092 | -6/Extension | Retrieved Zion intel report: Prototype Stockpiles 6134 | -6/Extension | Retrieved Zion intel report: Unaware Analyses 6167 | -6/Extension | Retrieved Zion intel report: Unaware Analyses 6241 | -6/Extension | Retrieved Zion intel report: Prototype Schematics 6250 | -6/Extension | Retrieved Zion intel report: Branch Access 6250 | -6/Extension | Identified exit to Cetus 6265 | -6/Extension | Discovered exit to Factory (range 10) 6342 | -6/Extension | Entered Cetus 6342 | -6/Cetus | Accompanied by 9 allies 6361 | -6/Cetus | Spotted Cetus Guard 6361 | -6/Cetus | Spotted Cetus Guard 6361 | -6/Cetus | Spotted Cetus Guard 6367 | -6/Cetus | Spotted Cetus Guard 6375 | -6/Cetus | Allies destroyed Cetus Guard 6381 | -6/Cetus | Allies destroyed Cetus Guard 6391 | -6/Cetus | Allies destroyed Cetus Guard 6395 | -6/Cetus | Allies destroyed Cetus Guard 6416 | -6/Cetus | Found Prototype Protection 6416 | -6/Cetus | Identified Zio. Weapon Casing 6424 | -6/Cetus | Lost 4 parts (1p2n1u) 6465 | -6/Cetus | Retrieved Zion intel report: Component Schematics 6466 | -6/Cetus | Zion Fire squad teleported in 6481 | -6/Cetus | Zion Light squad teleported in 6488 | -6/Cetus | Discovered new exit (range 18) 6498 | -6/Cetus | Identified exit to Archives 6533 | -6/Cetus | Entered Archives 6533 | -6/Archives | Accompanied by 10 allies 6573 | -6/Archives | Discovered exit to Factory (range 18) 6590 | -6/Archives | Unable to access archive contents 6594 | -6/Archives | Discovered new exit (range 18) 6619 | -6/Archives | Identified exit to Hub_04(d) 6624 | -6/Archives | Entered Hub_04(d) 6624 | -6/Hub_04(d) | Accompanied by 9 allies 6764 | -6/Hub_04(d) | Retrieved Zion intel report: Unaware Analyses 6767 | -6/Hub_04(d) | Retrieved Zion intel report: Emergency Access 6768 | -6/Hub_04(d) | Zion Heavy squad teleported in 6827 | -6/Hub_04(d) | Discovered exit to Factory (range 13) 6839 | -6/Hub_04(d) | Zion Heavy squad teleported in 6875 | -6/Hub_04(d) | Network Hub disabled 6904 | -6/Hub_04(d) | Spotted Lightning 6904 | -6/Hub_04(d) | Entered Factory 6904 | -5/Factory | Accompanied by 5 allies 6904 | -5/Factory | Evolved 2 slots: Utility x2 6927 | -5/Factory | Retrieved Zion intel report: Component Stockpiles 6959 | -5/Factory | Retrieved Zion intel report: Prototype Schematics 6996 | -5/Factory | Repaired Cmb. Airjet 7004 | -5/Factory | Retrieved Zion intel report: Prototype Stockpiles 7014 | -5/Factory | Retrieved Zion intel report: Main Access 7014 | -5/Factory | Identified exit to Factory 7068 | -5/Factory | Retrieved Zion intel report: Component Schematics 7107 | -5/Factory | Build established: Scavenger-Ninja 7136 | -5/Factory | Retrieved Zion intel report: Component Schematics 7154 | -5/Factory | P-70 Sage assimilated allied VZ-JJP(z) 7183 | -5/Factory | P-70 Sage assimilated allied X7-8CN(i) 7206 | -5/Factory | Lost 4 parts (1p2n1u) 7214 | -5/Factory | Discovered new exit (range 7) 7309 | -5/Factory | Retrieved Zion intel report: Prototype Schematics 7367 | -5/Factory | Retrieved Zion intel report: Unaware Analyses 7452 | -5/Factory | Build established: Scavenger-Scout 7489 | -5/Factory | Fabricated Exp. Terrain Scan Processor (x1) 7704 | -5/Factory | Identified exit to Upper Caves 7704 | -5/Factory | Entered Upper Caves 7834 | -5/Upper Caves | Discovered new exit (range 18) 7855 | -5/Upper Caves | Spotted B-75 Beast 7873 | -5/Upper Caves | Identified exit to Upper Caves 7874 | -5/Upper Caves | Entered another Upper Caves area 7943 | -5/Upper Caves | Identified exit to Warlord 7966 | -5/Upper Caves | Build established: Scavenger-Ninja 7985 | -5/Upper Caves | Entered Warlord 8002 | -5/Warlord | Discovered new exit (range 9) 8024 | -5/Warlord | System corruption cleaned by Quarantine Array 8129 | -5/Warlord | Received a Watcher feed algorithm from an ecstatic Tinkerer 8222 | -5/Warlord | Found Prototype Device 8222 | -5/Warlord | Identified Minesniffer Drone Bay 8241 | -5/Warlord | Visited the Vortex Lab 8244 | -5/Warlord | Found Prototype Piercing Weapon 8244 | -5/Warlord | Identified Vortex Lance 8250 | -5/Warlord | Found Vortex Lance 8251 | -5/Warlord | Found Prototype Energy Cannon 8251 | -5/Warlord | Identified Vortex Cannon 8261 | -5/Warlord | Warlord's base attacked by MAIN.C 8329 | -5/Warlord | Rebuked by Warlord 8416 | -5/Warlord | Opened side exit 8467 | -5/Warlord | Identified exit to Proximity Caves 8468 | -5/Warlord | Entered Proximity Caves 8578 | -4/Proximity Caves | Learned location of Armory (-4) 8606 | -4/Proximity Caves | Spotted B-86 Titan 8630 | -4/Proximity Caves | Discovered exit to Factory (range 6) 8633 | -4/Proximity Caves | Entered Factory 8633 | -4/Factory | Evolved 2 slots: Utility x1, Weapon x1 8898 | -4/Factory | Retrieved Zion intel report: Trap Installations 9039 | -4/Factory | Retrieved Zion intel report: Depthwide Sectors/0 9072 | -4/Factory | Retrieved Zion intel report: Component Stockpiles 9079 | -4/Factory | Retrieved Zion intel report: Prototype Stockpiles 9080 | -4/Factory | Zion Hacking Resupply teleported in 9083 | -4/Factory | Found Prototype Hackware 9098 | -4/Factory | Discovered new exit (range 10) 9104 | -4/Factory | Identified exit to Research 9115 | -4/Factory | Identified Exp. System Shield 9202 | -4/Factory | Fabricated Exp. Optical Array? 9254 | -4/Factory | Fabricated Ionic Axe (x1) 9306 | -4/Factory | Spotted B-86 Titan 9316 | -4/Factory | Fabricated Ionic Axe (x1) 9581 | -4/Factory | Retrieved Zion intel report: Unaware Analyses 9582 | -4/Factory | Zion Heavy squad teleported in 9585 | -4/Factory | Zion Light squad teleported in 9633 | -4/Factory | First assault squad dispatched 9727 | -4/Factory | Fabricated Cmb. Airjet? 9846 | -4/Factory | Local fabrication network quarantined 9864 | -4/Factory | Build established: Hauler-Scout 9865 | -4/Factory | Spotted B-86 Titan 9878 | -4/Factory | Terminal network hard line cut 9934 | -4/Factory | Discovered new exit (range 11) 9941 | -4/Factory | Identified exit to Upper Caves 9944 | -4/Factory | Entered Upper Caves 9983 | -4/Upper Caves | Encountered a Warlord checkpoint 10000 | -4/Upper Caves | Learned Research stockpile data 10045 | -4/Upper Caves | Discovered new exit (range 4) 10045 | -4/Upper Caves | Identified exit to Upper Caves 10046 | -4/Upper Caves | Entered another Upper Caves area 10047 | -4/Upper Caves | Discovered exit to Research (range 16) 10078 | -4/Upper Caves | Encountered a Warlord checkpoint 10106 | -4/Upper Caves | Learned location of 1 exit from Research 10165 | -4/Upper Caves | Discovered new exit (range 15) 10197 | -4/Upper Caves | Identified exit to Zhirov 10198 | -4/Upper Caves | Entered Zhirov 10198 | -4/Zhirov | Discovered new exit (range 4) 10199 | -4/Zhirov | Identified exit to Proximity Caves 10206 | -4/Zhirov | Met Zhirov 10222 | -4/Zhirov | Found Alien Artifact 10222 | -4/Zhirov | Identified Integrated Reactor 10222 | -4/Zhirov | Installed Integrated Reactor, increased core energy generation (+10) 10259 | -4/Zhirov | Learned location of Quarantine (-2) 10259 | -4/Zhirov | Learned location of Testing (-3) 10259 | -4/Zhirov | Learned location of Command (-1) 10261 | -4/Zhirov | Zhirov requested help retrieving the SGEMP Prototype 10274 | -4/Zhirov | Entered Proximity Caves 10409 | -3/Proximity Caves | Discovered exit to Research (range 7) 10435 | -3/Proximity Caves | Entered Research 10435 | -3/Research | Evolved 2 slots: Propulsion x1, Utility x1 10436 | -3/Research | Identified exit to Research 10634 | -3/Research | Retrieved Zion intel report: Active Terminals 10635 | -3/Research | Zion Melee Resupply teleported in 10638 | -3/Research | Found Prototype Slashing Weapon 10638 | -3/Research | Identified Nanosword 10750 | -3/Research | Build established: Hauler-Ninja 10766 | -3/Research | Spotted B-86 Titan 10768 | -3/Research | Retrieved Zion intel report: Prototype Schematics 10827 | -3/Research | Retrieved Zion intel report: Depthwide Sectors/-1 10854 | -3/Research | Retrieved Zion intel report: Trap Installations 10868 | -3/Research | Retrieved Zion intel report: Unaware Analyses 10869 | -3/Research | Zion Heavy squad teleported in 11016 | -3/Research | Entered another Research area 11016 | -2/Research | Evolved 2 slots: Utility x2 11030 | -2/Research | Spotted B-90 Cyclops 11083 | -2/Research | Crushed by falling debris 11087 | -2/Research | Self-destructed Last Messages --------------- 11052_ Dropped Cld. Gravmag System. 11053_ Acquired Prototype Hover Unit. 11053_ Identified Cld. Antigrav System. 11053_ W-44 Eye distress signal jammed. 11056_ Dropped Imp. Antigrav System. 11057_ W-44 Eye distress signal jammed. 11057_ Acquired Cld. Gravmag System. 11058_ W-44 Eye distress signal jammed. 11070_ Penetrated by Slug. 11070_ Slug penetrates Wall. 11078_ Exp. Propulsion Shielding destroyed. 11083_ The unstable cave ceiling collapses. 11083_ Crushed by falling debris. 11083_ Imp. Utility Shielding destroyed. 11083_ Mic. Fission Core destroyed. 11083_ System corrupted by crushing effect (+5). 11083_ Adv. Sensor Array destroyed. 11083_ System corrupted by crushing effect (+2). 11085_ Exp. System Shield destroyed. 11087_ C 4>XPPMMB2FBFWXQMTC%KHAIFTYLW